bitfinex/quotes_ETHUSD_20250114
["timestamp","ask_amount","ask_price","bid_price","bid_amount"]
[1736848813729,3.07976,3247.0,3246.9,0.169168]
[1736848813982,3.387736,3247.0,3246.9,0.169168]
[1736848815169,4.00169481,3247.0,3246.9,0.169168]
[1736848816570,3.07972,3247.1,3246.9,0.169168]
[1736848816783,3.07976,3247.0,3246.9,0.169168]
[1736848817070,7.58306,3247.0,3246.9,0.169168]
[1736848817272,6.08014,3246.6,3246.5,2.67775154]
[1736848817476,11.08502203,3246.6,3246.5,2.67775154]
[1736848817769,12.50151923,3246.6,3246.5,2.67775154]
[1736848819630,12.50151923,3246.6,3246.5,2.62775154]
[1736848820878,3.0,3246.5,3245.2,1.52090663]
[1736848821029,3.08128,3245.4,3245.2,1.4901]
[1736848821235,3.0,3245.5,3244.8,2.77121868]
[1736848821435,3.08128,3245.4,3244.8,2.77121868]
[1736848821685,3.0,3244.9,3244.8,2.77121868]
[1736848821838,6.08175,3244.9,3244.8,2.77121868]
[1736848822035,6.0816,3245.1,3244.8,2.77121868]
[1736848822278,5.00488203,3245.9,3244.9,1.4901]
[1736848822446,4.58413,3245.9,3244.9,1.4901]
[1736848822649,3.50158203,3246.5,3245.1,4.57164]
[1736848822871,3.08065,3246.1,3245.2,1.6561]
[1736848823092,3.0,3246.4,3245.2,1.52090845]
[1736848823301,4.64387011,3246.3,3245.3,0.166]
[1736848823589,3.08095,3245.8,3245.2,1.4901]
[1736848823779,3.0,3246.1,3245.2,1.4901]
[1736848823780,3.081,3245.7,3245.2,1.4901]
[1736848823977,3.08117,3245.6,3245.2,1.4901]
[1736848824177,3.08119,3245.5,3244.8,4.26131868]
[1736848824392,3.08138,3245.3,3244.8,4.26131868]
[1736848824793,3.0815,3245.2,3244.8,4.26131868]
[1736848825196,3.08165,3245.1,3244.8,2.77121868]
[1736848825381,0.308138,3245.3,3244.8,2.77121868]
[1736848825552,3.0,3245.7,3244.9,1.4901]
[1736848825753,3.08156,3245.2,3244.9,1.4901]
[1736848825954,3.69722392,3245.6,3244.9,1.4901]
[1736848825955,0.61605392,3245.6,3244.9,1.4901]
[1736848826154,3.08114,3245.6,3244.9,1.52091491]
[1736848826357,3.08118,3245.5,3244.9,1.4901]
[1736848826592,3.08137,3245.3,3244.8,2.77121868]
[1736848826831,0.6582762,3245.4,3244.8,2.77121868]
[1736848826976,3.08151,3245.2,3244.8,2.77121868]
[1736848827180,3.08137,3245.4,3244.8,2.77121868]
[1736848827501,6.08139,3245.3,3244.8,2.77121868]
[1736848827998,3.08148,3245.2,3244.8,2.77121868]
[1736848828361,2.111448,3245.2,3244.8,2.77121868]
[1736848828563,3.08155,3245.2,3244.8,2.77121868]
[1736848829102,3.0,3245.3,3244.8,2.77121868]
[1736848829308,6.08143,3245.3,3244.9,1.4901]
[1736848829476,3.0,3245.3,3244.9,1.4901]
[1736848829808,3.50158203,3245.9,3244.9,1.4901]
[1736848829809,3.08112,3245.6,3244.9,1.4901]
[1736848829977,3.08112,3245.6,3244.9,2.08223187]
[1736848830458,0.62796877,3246.0,3245.0,0.0308125]
[1736848830661,1.4233,3246.9,3245.7,3.08099]
[1736848830881,0.4924882,3246.8,3245.9,1.5691]
[1736848831079,3.08019,3246.6,3246.0,0.03080222]
[1736848831291,3.08024,3246.5,3246.0,0.166]
[1736848831688,1.4233,3247.2,3246.2,3.08051]
[1736848831689,3.0796,3247.2,3246.2,3.08051]
[1736848832009,3.07921,3247.6,3246.3,1.59989837]
[1736848832010,3.07975,3247.1,3246.3,1.59989837]
[1736848832161,3.07988,3246.9,3246.3,1.5691]
[1736848832369,3.07951,3247.3,3246.3,1.5999025]
[1736848832557,3.07951,3247.3,3246.3,4.6803125]
[1736848832758,3.0,3247.6,3246.3,1.5999025]
[1736848832964,3.07948,3247.4,3246.4,3.08032]
[1736848833203,3.07948,3247.4,3246.5,2.06791911]
[1736848833709,3.0,3247.3,3246.5,2.06791911]
[1736848834007,3.0792,3247.6,3246.6,3.08013]
[1736848834212,3.50158203,3247.7,3246.7,0.03079415]
[1736848834213,3.0793,3247.5,3246.7,0.03079415]
[1736848834965,3.50158203,3247.7,3246.7,0.03079415]
[1736848835167,0.41272668,3247.6,3246.7,0.166]
[1736848835409,3.07913,3247.7,3246.8,1.5691]
[1736848835612,0.61025255,3247.9,3246.8,1.5691]
[1736848835781,3.07956,3247.3,3246.8,1.5691]
[1736848835984,3.07929,3247.5,3246.8,1.59989699]
[1736848836507,0.61025255,3247.9,3246.8,1.59989699]
[1736848836714,3.0792,3247.6,3246.8,1.59989699]
[1736848837069,3.07927,3247.6,3246.8,1.5691]
[1736848837297,0.45855905,3247.8,3246.8,1.5691]
[1736848837569,3.07922,3247.6,3246.9,0.03079526]
[1736848837769,0.45855905,3247.8,3246.8,1.5691]
[1736848837770,3.07939,3247.4,3246.8,1.5691]
[1736848838011,3.387329,3247.4,3246.8,1.5691]
[1736848838224,0.307939,3247.4,3246.8,1.5691]
[1736848838582,3.07962,3247.2,3246.8,1.5691]
[1736848838904,3.0795,3247.3,3246.8,1.5691]
[1736848839290,0.307939,3247.4,3246.8,1.5691]
[1736848839291,3.07961,3247.2,3246.8,1.5691]
[1736848839483,3.07968,3247.1,3246.8,1.5691]
[1736848839685,0.3387549,3247.2,3246.4,1.5691]
[1736848840035,3.08024,3246.5,3246.4,1.5691]
[1736848840334,6.58144203,3246.9,3246.1,1.5691]
[1736848840485,3.08007,3246.7,3246.1,1.5691]
[1736848840686,3.50158203,3246.9,3246.1,1.5691]
[1736848840687,3.388237,3246.6,3246.1,1.5691]
[1736848841536,0.308007,3246.6,3246.1,1.5691]
[1736848842095,3.388147,3246.6,3246.1,1.5691]
[1736848842292,3.08045,3246.3,3245.8,1.5691]
[1736848842524,3.08026,3246.5,3245.8,1.5691]
[1736848842828,3.08043,3246.3,3245.3,0.166]
[1736848843035,3.4811567,3246.4,3245.3,0.166]
[1736848843238,3.08111,3245.6,3245.3,0.166]
[1736848843420,3.08094,3245.8,3245.3,0.166]
[1736848843737,3.08128,3245.4,3245.3,0.166]
[1736848843948,3.08128,3245.4,3245.0,1.5691]
[1736848844237,0.608094,3245.7,3244.8,2.77121868]
[1736848844238,3.08156,3245.2,3244.8,2.77121868]
[1736848844424,3.08155,3245.2,3244.8,2.77121868]
[1736848844623,3.08175,3244.9,3244.8,2.77121868]
[1736848844794,3.389925,3244.9,3244.8,2.77121868]
[1736848846034,0.308175,3244.9,3244.8,2.77121868]
[1736848846218,3.0,3245.2,3244.8,2.77121868]
[1736848847321,1.4115,3245.8,3244.8,4.22051868]
[1736848847524,1.4115,3245.8,3244.9,0.03081499]
[1736848847741,3.08109,3245.7,3244.8,4.22051868]
[1736848848030,3.08143,3245.3,3244.8,4.22051868]
[1736848848545,3.08067,3246.1,3245.1,3.08154]
[1736848848745,3.08064,3246.1,3245.2,1.757454]
[1736848849045,3.0,3246.0,3245.2,1.4493]
[1736848849350,4.49233,3245.9,3245.2,1.4493]
[1736848849508,1.4115,3246.2,3245.2,1.4493]
[1736848849706,7.49209,3246.2,3245.2,1.4493]
[1736848850023,3.08111,3245.6,3245.2,1.4493]
[1736848850217,3.08121,3245.5,3244.8,4.22051868]
[1736848850420,3.08118,3245.5,3244.8,4.22051868]
[1736848850624,3.08136,3245.4,3244.8,4.22051868]
[1736848851206,3.0,3246.0,3244.9,0.03081626]
[1736848851638,3.08101,3245.7,3244.9,0.03081626]
[1736848852024,3.0,3245.8,3244.9,3.84588275]
[1736848852458,4.4115,3246.2,3244.9,0.76413275]
[1736848852747,3.08101,3245.7,3244.8,4.25133113]
[1736848853102,3.08101,3245.7,3244.8,4.22051868]
[1736848853322,3.0,3245.9,3244.8,4.22051868]
[1736848853522,3.08112,3245.6,3244.8,4.22051868]
[1736848853949,3.08118,3245.5,3244.8,4.22051868]
[1736848854266,3.389298,3245.5,3244.8,4.22051868]
[1736848854829,3.08132,3245.4,3244.8,4.22051868]
[1736848855030,0.308118,3245.5,3244.8,4.22051868]
[1736848855258,3.0,3245.4,3244.8,4.22051868]
[1736848855459,3.08103,3245.7,3244.9,0.03081702]
[1736848855826,3.08106,3245.7,3244.8,4.22051868]
[1736848856027,3.389166,3245.7,3244.8,4.22051868]
[1736848856333,3.08137,3245.4,3244.8,4.22051868]
[1736848856650,0.308106,3245.7,3244.8,4.22051868]
[1736848857013,3.081,3245.7,3244.9,0.0308162]
[1736848857330,3.08111,3245.6,3244.8,4.22051868]
[1736848857731,3.08119,3245.5,3244.8,4.22051868]
[1736848858666,3.0,3245.4,3244.8,4.22051868]
[1736848858869,6.08101,3245.7,3244.8,4.22051868]
[1736848859026,3.08157,3245.1,3244.8,4.22051868]
[1736848859428,3.08128,3245.4,3244.8,2.77121868]
[1736848859631,4.4115,3245.5,3244.8,2.77121868]
[1736848859933,3.0,3245.0,3244.8,2.77121868]
[1736848860363,3.08166,3245.0,3244.8,2.77121868]
[1736848860545,0.308166,3244.9,3244.8,2.77121868]
[1736848861469,3.08149,3245.2,3244.8,2.77121868]
[1736848861654,3.689191,3245.6,3244.8,2.77121868]
[1736848861655,3.689241,3245.6,3244.9,1.4829]
[1736848861855,3.08094,3245.8,3244.9,1.5137157]
[1736848862083,1.5332,3246.1,3244.9,1.5137157]
[1736848862285,3.08046,3246.3,3244.9,3.1125357]
[1736848862458,3.08053,3246.2,3245.2,3.08142]
[1736848862789,3.08053,3246.2,3245.4,1.4829]
[1736848862982,3.08053,3246.2,3245.5,0.03080859]
[1736848863188,0.60685551,3246.3,3245.5,0.03080859]
[1736848863386,3.08062,3246.1,3245.4,1.4829]
[1736848863592,3.08027,3246.5,3245.4,1.4829]
[1736848863593,3.50158203,3246.5,3245.4,1.4829]
[1736848863804,3.08046,3246.3,3245.4,1.4829]
[1736848864086,3.08075,3246.0,3245.4,1.4829]
[1736848864257,3.08083,3245.9,3245.4,1.4829]
[1736848864445,3.0,3246.0,3245.4,1.4829]
[1736848864783,3.0,3245.5,3245.1,1.4829]
[1736848865087,3.08121,3245.5,3245.1,1.4829]
[1736848865271,3.08147,3245.2,3245.1,1.4829]
[1736848865474,3.08163,3245.1,3244.8,4.25411868]
[1736848865647,3.08169,3245.0,3244.8,4.25411868]
[1736848865844,3.08152,3245.2,3244.8,4.25411868]
[1736848866185,3.08156,3245.1,3244.8,4.25411868]
[1736848866359,3.08175,3244.9,3244.8,2.77121868]
[1736848866690,3.389776,3245.1,3244.8,2.77121868]
[1736848866841,0.308156,3245.1,3244.8,2.77121868]
[1736848867042,3.08159,3245.1,3244.8,2.77121868]
[1736848867268,3.0,3245.2,3244.8,2.77121868]
[1736848867487,3.08168,3245.0,3244.8,2.77121868]
[1736848867687,6.08175,3244.9,3244.8,2.77121868]
[1736848867845,9.58333203,3244.9,3244.8,2.77121868]
[1736848868185,12.08236523,3244.9,3244.8,2.77121868]
[1736848868894,12.63236523,3244.9,3244.8,2.77121868]
[1736848869297,12.63236523,3244.9,3244.8,1.79696212]
[1736848870077,3.0828,3243.8,3243.7,0.169168]
[1736848870495,6.0828,3243.8,3243.7,0.169168]
[1736848873588,6.69338612,3243.8,3243.7,0.169168]
[1736848874625,0.9583332,3244.9,3243.7,1.652068]
[1736848874771,3.08189,3244.8,3243.8,3.11353572]
[1736848874976,1.5332,3245.3,3244.0,3.08261]
[1736848875214,3.50158203,3245.1,3244.2,1.4941]
[1736848875520,3.08185,3244.8,3244.2,1.4941]
[1736848875831,3.50158203,3245.1,3244.2,1.4941]
[1736848876038,3.08197,3244.7,3244.2,1.4941]
[1736848876588,3.08197,3244.7,3243.7,0.335168]
[1736848876589,3.08227,3244.4,3243.7,0.169168]
[1736848876787,3.08227,3244.4,3243.8,1.4209]
[1736848877234,3.0819,3244.8,3243.8,1.4209]
[1736848877235,3.0824,3244.3,3243.8,1.4209]
[1736848877447,3.0,3244.6,3243.8,1.4209]
[1736848877735,3.08239,3244.3,3243.8,1.4209]
[1736848878318,3.0,3244.6,3243.8,1.4209]
[1736848878493,3.08226,3244.4,3243.8,1.4209]
[1736848878687,0.6583052,3245.0,3243.9,0.03082583]
[1736848878901,3.7399852,3245.0,3244.2,1.4209]
[1736848879289,0.63022666,3245.1,3244.3,0.03082031]
[1736848879490,3.08211,3244.6,3244.2,1.4209]
[1736848879939,3.0821,3244.6,3244.2,1.4209]
[1736848880730,3.08183,3244.9,3244.2,1.4209]
[1736848880886,0.63022666,3245.1,3244.2,1.4209]
[1736848880887,0.63022666,3245.1,3244.3,0.0308201]
[1736848881090,0.41318087,3245.0,3244.3,0.0308201]
[1736848881327,3.0,3244.9,3244.3,0.0308201]
[1736848881918,3.0,3244.9,3244.2,1.4209]
[1736848882331,0.41318087,3245.0,3244.2,1.4209]
[1736848882540,3.08188,3244.8,3244.2,1.4209]
[1736848883192,3.0818,3244.9,3244.2,1.4209]
[1736848883434,3.49432075,3244.9,3244.2,1.4209]
[1736848883790,3.49432075,3244.9,3244.3,0.03082015]
[1736848884219,3.49432075,3244.9,3244.2,1.4209]
[1736848884403,3.49432075,3244.9,3244.2,1.45172015]
[1736848884604,3.08161,3245.1,3244.2,1.45172015]
[1736848884834,0.308121,3245.4,3244.2,1.45172015]
[1736848885236,3.08153,3245.2,3244.2,1.45172015]
[1736848885445,3.0,3245.1,3244.2,4.53412015]
[1736848885603,3.0,3245.1,3244.3,3.08229]
[1736848885804,3.50158203,3245.8,3244.5,1.4209]
[1736848886036,3.08129,3245.4,3244.5,4.50298]
[1736848886638,0.2496,3245.0,3244.5,4.50298]
[1736848886944,0.2496,3245.0,3244.7,3.08193]
[1736848887244,0.2496,3245.0,3244.8,1.4209]
[1736848887445,0.2496,3245.0,3244.9,0.19681477]
[1736848887601,0.2496,3245.0,3244.9,4.69946477]
[1736848888144,0.2496,3245.0,3244.9,4.66865]
[1736848889098,0.2496,3245.0,3244.9,11.75104469]
[1736848889329,3.0799,3246.9,3245.9,1.4209]
[1736848889528,0.8125382,3246.8,3246.0,0.03080357]
[1736848889894,3.07969,3247.1,3246.0,0.03080357]
[1736848890202,3.07932,3247.5,3246.4,3.08029]
[1736848890545,3.07932,3247.5,3246.5,0.03079862]
[1736848890883,3.50158203,3247.6,3246.5,0.03079862]
[1736848891028,3.50158203,3247.6,3246.6,1.4952]
[1736848891029,3.07942,3247.4,3246.6,1.4952]
[1736848891224,0.307942,3247.3,3246.6,1.4952]
[1736848891471,3.07952,3247.3,3246.6,1.4952]
[1736848892371,6.58142203,3247.0,3246.6,1.4952]
[1736848892543,3.07987,3246.9,3246.6,1.4952]
[1736848892873,3.07987,3246.9,3246.2,1.4952]
[1736848893022,3.08005,3246.7,3246.2,1.4952]
[1736848893220,3.08014,3246.6,3246.2,1.4952]
[1736848893851,0.6581452,3246.8,3246.2,1.4952]
[1736848894053,3.08024,3246.5,3246.2,1.4952]
[1736848894355,3.08024,3246.5,3245.9,0.166]
[1736848894356,3.08038,3246.4,3245.9,1.6612]
[1736848894667,0.308038,3246.3,3245.9,1.6612]
[1736848895464,5.2055352,3246.8,3245.9,1.6612]
[1736848895670,3.0,3246.7,3246.0,0.03080558]
[1736848895826,3.08006,3246.7,3246.0,0.03080558]
[1736848896028,3.08006,3246.7,3245.9,1.6612]
[1736848896223,3.08033,3246.4,3245.9,1.6612]
[1736848896541,0.308033,3246.3,3245.9,1.6612]
[1736848896743,3.7381052,3246.8,3246.0,0.03080381]
[1736848897036,3.0796,3247.2,3246.2,3.08051]
[1736848897237,3.0,3247.1,3246.3,0.03080024]
[1736848897445,3.0796,3247.2,3246.1,1.4952]
[1736848897446,3.0,3247.2,3246.1,1.4952]
[1736848897639,3.07978,3247.0,3246.1,1.4952]
[1736848897963,3.07965,3247.2,3246.1,4.60659028]
[1736848898172,0.66894693,3247.1,3246.1,4.60659028]
[1736848898374,0.66894693,3247.1,3246.1,1.52600028]
[1736848898684,3.74868693,3247.1,3246.1,1.52600028]
[1736848899683,0.66894693,3247.1,3246.2,4.57569]
[1736848899867,6.07934,3247.5,3246.5,1.4952]
[1736848899868,3.0,3247.5,3246.5,1.4952]
[1736848900035,4.96898203,3247.6,3246.5,1.52599707]
[1736848900382,3.0796,3247.2,3246.5,1.4952]
[1736848900537,3.07987,3246.9,3246.5,1.4952]
[1736848900742,3.50158203,3246.9,3246.1,1.4952]
[1736848900965,0.7968982,3246.8,3245.5,1.4952]
[1736848901173,0.7968982,3246.8,3245.7,1.4952]
[1736848901174,3.8769382,3246.8,3245.7,1.4952]
[1736848901368,3.8769382,3246.8,3245.9,1.4952]
[1736848901576,3.08005,3246.7,3245.9,1.4952]
[1736848901789,0.7968982,3246.8,3245.9,1.4952]
[1736848901973,3.7968982,3246.8,3245.9,1.4952]
[1736848902139,3.7968982,3246.8,3245.5,3.08118]
[1736848902140,3.0,3246.5,3245.0,4.315726]
[1736848902486,3.0811,3245.6,3245.1,1.6612]
[1736848902793,3.08137,3245.4,3245.1,1.4952]
[1736848903089,3.50158203,3245.7,3245.1,1.4952]
[1736848903289,3.0,3245.4,3244.6,1.4952]
[1736848903446,0.3,3245.3,3244.6,1.4952]
[1736848903844,3.08182,3244.9,3244.6,1.4952]
[1736848904089,3.08186,3244.8,3244.6,1.4952]
[1736848904445,3.08151,3245.2,3244.2,0.166]
[1736848904446,6.50158203,3245.1,3244.2,1.4952]
[1736848904649,3.08199,3244.7,3244.2,1.4952]
[1736848904886,3.0,3244.9,3244.2,1.4952]
[1736848905186,3.08224,3244.4,3244.2,1.4952]
[1736848905396,3.08232,3244.3,3244.2,1.4952]
[1736848905695,3.08232,3244.3,3243.9,1.4952]
[1736848906283,3.08228,3244.4,3243.9,1.4952]
[1736848907060,3.08148,3244.4,3243.9,1.4952]
[1736848907404,0.3,3244.8,3244.0,0.03082488]
[1736848907608,3.08214,3244.5,3243.9,1.4952]
[1736848907961,3.08224,3244.4,3243.9,1.4952]
[1736848908195,0.17674,3244.7,3243.9,1.4952]
[1736848908399,3.08217,3244.5,3243.9,1.4952]
[1736848908572,0.17674,3244.7,3243.9,1.4952]
[1736848908774,0.3,3245.3,3244.1,1.4952]
[1736848908775,3.08158,3245.1,3244.1,1.4952]
[1736848909103,3.0,3245.0,3244.2,0.03082006]
[1736848909466,0.338158,3245.1,3244.1,1.4952]
[1736848909686,3.08216,3244.5,3244.1,1.4952]
[1736848910286,3.08226,3244.4,3243.8,1.4952]
[1736848910501,4.54928,3244.8,3243.8,1.4952]
[1736848910502,3.08187,3244.8,3243.9,3.08269]
[1736848910812,3.08187,3244.8,3243.9,3.59129963]
[1736848911108,3.08187,3244.8,3243.9,0.47778828]
[1736848911408,3.08243,3244.2,3243.8,1.4952]
[1736848912060,4.4674,3244.4,3243.7,0.169168]
[1736848912260,3.08268,3244.0,3243.7,0.169168]
[1736848912555,9.58400203,3244.2,3243.7,0.169168]
[1736848912759,0.9584002,3244.1,3243.7,0.169168]
[1736848913057,3.0828,3243.8,3243.7,0.169168]
[1736848913258,6.0828,3243.8,3243.7,0.169168]
[1736848913504,7.5502,3243.8,3243.7,0.169168]
[1736848914410,0.5575,3243.6,3242.1,1.4952]
[1736848914564,9.58509203,3243.1,3242.1,4.57957]
[1736848914759,1.1051782,3243.7,3242.1,1.4952]
[1736848914760,9.58479203,3243.4,3242.1,1.4952]
[1736848915003,6.50158203,3243.4,3242.2,0.03084055]
[1736848915171,3.0,3243.1,3242.2,3.11514055]
[1736848915372,3.08375,3242.9,3242.1,1.4952]
[1736848915591,6.08379,3242.8,3242.1,1.4952]
[1736848917708,0.608339,3243.1,3242.2,0.03084144]
[1736848918007,3.08355,3243.1,3242.3,1.4952]
[1736848918567,3.08357,3243.0,3242.3,1.4952]
[1736848918773,0.308357,3243.0,3242.3,1.4952]
[1736848919173,3.08351,3243.1,3242.3,1.4952]
[1736848919369,3.08367,3242.9,3242.3,1.4952]
[1736848919709,3.08337,3243.2,3242.3,1.4952]
[1736848919910,3.08371,3242.9,3242.3,1.4952]
[1736848920992,3.0,3243.2,3242.3,1.4952]
[1736848921167,3.0,3243.2,3241.6,0.3088]
[1736848921168,3.0,3242.5,3241.8,1.4815]
[1736848921515,8.04944203,3243.0,3241.8,1.4815]
[1736848921516,3.0,3242.6,3241.8,1.4815]
[1736848922015,3.08414,3242.4,3241.8,1.4815]
[1736848922216,3.08398,3242.6,3241.8,1.51234386]
[1736848922413,0.60423743,3242.7,3241.8,1.4815]
[1736848922572,3.08369,3242.9,3242.0,1.4815]
[1736848922922,3.08369,3242.9,3242.0,5.20828638]
[1736848923267,3.08369,3242.9,3242.1,0.03084153]
[1736848923469,1.4643,3243.5,3242.1,0.03084153]
[1736848923673,1.4643,3243.5,3242.0,2.12378638]
[1736848923674,1.4643,3243.5,3242.2,1.4815]
[1736848923897,3.08365,3243.0,3242.2,1.4815]
[1736848924115,0.308365,3243.0,3242.3,0.3088]
[1736848924300,3.08397,3242.6,3242.3,0.3088]
[1736848925014,0.308365,3243.0,3242.3,0.3088]
[1736848925015,3.08407,3242.5,3242.3,0.3088]
[1736848925321,4.54809,3242.8,3242.1,0.3088]
[1736848925527,6.08432,3242.2,3242.1,0.3088]
[1736848925814,3.0,3242.2,3242.1,0.3088]
[1736848926021,3.0,3242.5,3242.1,0.3088]
[1736848926315,0.454809,3242.7,3241.8,1.4815]
[1736848926519,3.08377,3242.8,3241.9,0.33964168]
[1736848926719,3.08394,3242.6,3242.0,0.18211417]
[1736848927011,3.08394,3242.6,3241.9,0.3088]
[1736848927371,3.08411,3242.5,3241.9,0.3088]
[1736848927572,3.0,3242.6,3241.9,0.3088]
[1736848927877,3.08401,3242.6,3241.9,0.3088]
[1736848928106,3.08406,3242.5,3241.9,0.3088]
[1736848928270,3.08433,3242.2,3241.9,0.3088]
[1736848929220,0.308406,3242.5,3241.9,0.3088]
[1736848929373,3.08399,3242.6,3241.9,0.3088]
[1736848929575,3.08375,3242.9,3241.9,0.3088]
[1736848929779,3.08375,3242.9,3242.0,0.03084302]
[1736848930023,3.08375,3242.9,3241.9,3.39333]
[1736848930024,3.08393,3242.7,3241.9,0.3088]
[1736848930175,3.50158203,3242.8,3241.9,0.3088]
[1736848930176,3.08317,3243.5,3242.2,0.3088]
[1736848930375,0.308317,3243.4,3242.4,0.3088]
[1736848930576,0.62497876,3243.5,3242.4,0.33963767]
[1736848930811,0.62497876,3243.5,3242.4,0.33963765]
[1736848930985,3.0,3243.5,3242.4,0.3088]
[1736848931390,3.0,3242.9,3242.4,0.3088]
[1736848931720,3.0,3242.9,3242.3,1.4815]
[1736848931877,3.608359,3242.9,3242.3,1.4815]
[1736848932780,3.692019,3242.9,3242.3,1.4815]
[1736848933128,0.608359,3242.9,3242.3,1.4815]
[1736848933620,3.692029,3242.9,3242.3,1.4815]
[1736848933781,3.0,3242.8,3242.3,1.4815]
[1736848934117,0.6692029,3242.7,3242.3,1.4815]
[1736848934505,3.7531229,3242.7,3242.3,1.4815]
[1736848934705,3.0,3242.6,3242.3,1.4815]
[1736848934916,3.08394,3242.6,3242.3,1.4815]
[1736848935279,3.08394,3242.6,3241.8,0.4748]
[1736848935280,3.08394,3242.6,3241.9,1.2393]
[1736848935589,0.608359,3242.9,3242.0,0.03084292]
[1736848935791,3.0,3242.8,3242.1,0.0308422]
[1736848936007,3.0836,3243.0,3242.1,0.0308422]
[1736848936196,3.08356,3243.0,3241.9,1.82806869]
[1736848936501,3.08402,3242.6,3241.9,0.58876869]
[1736848936821,3.08398,3242.6,3242.0,1.2393]
[1736848937381,3.08405,3242.5,3242.0,1.2393]
[1736848937683,3.0842,3242.4,3242.0,1.2393]
[1736848938004,0.308405,3242.5,3242.0,1.2393]
[1736848938324,3.0,3242.9,3242.1,0.03084442]
[1736848938478,6.08366,3242.9,3242.1,0.03084442]
[1736848938684,3.0,3243.0,3242.0,1.2393]
[1736848938909,3.0,3242.8,3242.0,1.2393]
[1736848939222,3.08393,3242.7,3242.0,1.2393]
[1736848939393,3.0,3242.8,3242.0,1.2393]
[1736848939394,3.692333,3242.6,3242.0,1.2393]
[1736848940619,0.608393,3242.6,3242.0,1.2393]
[1736848940784,6.0838,3242.8,3242.0,1.2393]
[1736848941693,3.0,3242.8,3242.0,1.2393]
[1736848941889,3.08418,3242.4,3242.0,1.2393]
[1736848942132,3.08384,3242.7,3242.0,1.2393]
[1736848942304,3.0,3242.6,3242.0,1.2393]
[1736848942511,3.08416,3242.4,3242.0,1.2393]
[1736848942817,3.08416,3242.4,3241.4,3.4247257]
[1736848942818,1.226,3242.4,3241.6,0.3088]
[1736848943023,3.08433,3242.2,3241.6,0.3088]
[1736848943449,0.308433,3242.2,3241.6,0.3088]
[1736848943608,3.08463,3241.9,3241.6,0.3088]
[1736848943944,3.08451,3242.0,3241.5,1.2393]
[1736848944115,3.08427,3242.3,3241.5,1.2393]
[1736848944445,3.0,3242.1,3241.5,1.2393]
[1736848944945,3.0842,3242.4,3241.5,1.2393]
[1736848945147,3.6692584,3242.3,3241.5,1.2393]
[1736848945444,0.608384,3242.5,3241.7,1.2393]
[1736848945650,3.0,3242.4,3241.7,1.2393]
[1736848946004,3.0,3242.2,3241.7,1.2393]
[1736848946502,6.08409,3242.5,3241.7,1.2393]
[1736848946899,3.08409,3242.5,3241.7,1.2393]
[1736848947514,3.50158203,3242.9,3241.7,1.2393]
[1736848947729,3.08409,3242.5,3241.7,1.2393]
[1736848947939,3.08422,3242.4,3241.7,1.2393]
[1736848948443,0.39525574,3243.7,3241.1,3.25133]
[1736848948444,4.82668203,3243.3,3242.2,1.3073]
[1736848948645,1.3251,3243.7,3242.4,4.3914]
[1736848948815,3.08311,3243.5,3242.5,3.11485766]
[1736848949004,3.08347,3243.1,3242.4,1.4733]
[1736848949525,3.08413,3242.4,3241.8,1.3073]
[1736848949949,6.08387,3242.7,3241.8,1.3073]
[1736848950157,3.08377,3242.8,3241.8,4.39198]
[1736848950457,3.08393,3242.7,3241.8,4.39198]
[1736848950605,3.0,3242.4,3241.8,1.3073]
[1736848950806,0.308393,3242.7,3241.9,0.03084541]
[1736848951035,3.0,3242.6,3241.8,1.3073]
[1736848951219,4.82668203,3243.1,3242.0,1.2845]
[1736848951523,3.08376,3242.8,3242.0,1.2845]
[1736848951708,3.0,3242.6,3242.0,1.2845]
[1736848952047,3.0,3242.7,3242.0,1.31534179]
[1736848952247,3.0,3242.7,3242.0,1.2845]
[1736848952248,0.608384,3242.7,3242.0,1.2845]
[1736848952433,0.0075,3242.9,3242.0,1.2845]
[1736848952634,3.08415,3242.4,3241.6,1.2845]
[1736848952807,3.08429,3242.3,3241.6,1.2845]
[1736848953163,4.323,3242.4,3241.6,1.2845]
[1736848953309,3.08432,3242.2,3241.6,1.2845]
[1736848953658,3.08449,3242.1,3241.6,1.2845]
[1736848954010,0.4323,3242.3,3241.7,0.3088]
[1736848954700,3.4323,3242.3,3241.7,0.3088]
[1736848955011,3.08442,3242.1,3241.7,0.3088]
[1736848955257,6.0847,3241.8,3241.7,0.3088]
[1736848955551,6.08484,3241.7,3241.0,0.3088]
[1736848955754,3.085,3241.5,3241.0,0.3088]
[1736848956467,3.50158203,3241.8,3240.9,1.2845]
[1736848956468,6.0851,3241.4,3240.9,1.2845]
[1736848956618,3.08486,3241.7,3240.9,1.5933]
[1736848956955,0.308486,3241.6,3240.9,1.5933]
[1736848957266,3.08514,3241.4,3240.9,1.5933]
[1736848957468,3.08521,3241.3,3240.9,1.5933]
[1736848957659,3.08474,3241.8,3240.9,1.5933]
[1736848957821,3.08474,3241.8,3240.5,0.03085597]
[1736848957822,3.08435,3242.2,3241.3,1.5933]
[1736848958022,3.08435,3242.2,3241.5,1.2845]
[1736848958342,3.50158203,3243.0,3241.8,1.2845]
[1736848958527,3.50158203,3243.0,3242.0,1.2845]
[1736848958528,3.08388,3242.7,3242.0,1.2845]
[1736848958721,4.55945964,3243.1,3242.0,1.2845]
[1736848958722,1.323,3243.1,3242.0,1.2845]
[1736848958966,3.0,3242.8,3242.0,4.369]
[1736848959167,1.323,3243.1,3242.0,1.2845]
[1736848959464,3.0,3242.8,3242.0,1.2845]
[1736848959978,3.0,3242.6,3242.0,1.2845]
[1736848960558,3.08433,3242.2,3242.0,1.2845]
[1736848960871,3.08446,3242.1,3241.7,1.2845]